[Event "Torneo Nuevo Centro. Jornada 10"]
[Site "Chess.com"]
[Date "2020.08.21"]
[Round "6"]
[White "Conon, Catalin"]
[Black "Luque Saiz, Andrés"]
[Result "1-0"]
[WhiteElo "1933"]
[BlackElo "2033"]
[TimeControl "180+2"]
[EndTime "11:38:22 PDT"]
[Termination "Victoria de CatalinConon por jaque mate"]

1. e4 {[%clk 0:03:01.9]} 1... c6 {[%clk 0:03:00.5]} 2. d4 {[%clk 0:03:02.8]}
2... d5 {[%clk 0:03:01.8]} 3. exd5 {[%clk 0:03:03.8]} 3... cxd5 {[%clk
0:03:03.7]} 4. Bd3 {[%clk 0:03:04.9]} 4... Nc6 {[%clk 0:03:04.4]} 5. c3 {[%clk
0:03:06.2]} 5... Qc7 {[%clk 0:03:05.3]} 6. h3 {[%clk 0:03:06.3]} 6... Bd7 {[%clk
0:02:56.7]} 7. Nf3 {[%clk 0:03:07.7]} 7... e6 {[%clk 0:02:57.2]} 8. O-O {[%clk
0:03:09.1]} 8... Bd6 {[%clk 0:02:57.5]} 9. Nbd2 {[%clk 0:03:10.1]} 9... Nge7
{[%clk 0:02:58.3]} 10. Nb3 {[%clk 0:03:10.9]} 10... f6 {[%clk 0:02:54.8]} 11.
Be3 {[%clk 0:03:11.7]} 11... g5 {[%clk 0:02:49]} 12. c4 {[%clk 0:02:16.6]} 12...
dxc4 {[%clk 0:02:26.1]} 13. Bxc4 {[%clk 0:02:18.5]} 13... O-O-O {[%clk
0:02:25.1]} 14. Rc1 {[%clk 0:02:18.6]} 14... h5 {[%clk 0:02:24.5]} 15. d5 {[%clk
0:02:18.3]} 15... exd5 {[%clk 0:02:20.4]} 16. Bxd5 {[%clk 0:02:18.5]} 16... Nxd5
{[%clk 0:02:21.1]} 17. Qxd5 {[%clk 0:02:17.9]} 17... Bxh3 {[%clk 0:02:18]} 18.
Qb5 {[%clk 0:01:49.1]} 18... Bd7 {[%clk 0:01:23.2]} 19. Nfd4 {[%clk 0:01:48.6]}
19... h4 {[%clk 0:01:18.5]} 20. Na5 {[%clk 0:01:49.5]} 20... a6 {[%clk
0:00:46.9]} 21. Qa4 {[%clk 0:01:09.1]} 21... Bh2+ {[%clk 0:00:22]} 22. Kh1
{[%clk 0:01:09.7]} 22... h3 {[%clk 0:00:23]} 23. g3 {[%clk 0:00:23.2]} 23...
Bxg3 {[%clk 0:00:19.8]} 24. Ndxc6 {[%clk 0:00:19.7]} 24... Bxc6+ {[%clk
0:00:15.2]} 25. Nxc6 {[%clk 0:00:19.4]} 25... bxc6 {[%clk 0:00:14.1]} 26. Rxc6
{[%clk 0:00:20.3]} 26... Bd6 {[%clk 0:00:15.2]} 27. Rxc7+ {[%clk 0:00:21.3]}
27... Bxc7 {[%clk 0:00:17.1]} 28. Qxa6+ {[%clk 0:00:22.6]} 28... Kd7 {[%clk
0:00:18]} 29. Rd1+ {[%clk 0:00:23.4]} 29... Ke7 {[%clk 0:00:19.1]} 30. Bc5+
{[%clk 0:00:24.7]} 30... Kf7 {[%clk 0:00:20.3]} 31. Qc4+ {[%clk 0:00:20.6]}
31... Kg7 {[%clk 0:00:21]} 32. Re1 {[%clk 0:00:19.7]} 32... Rd7 {[%clk
0:00:17.5]} 33. Qe6 {[%clk 0:00:19.6]} 33... Rhd8 {[%clk 0:00:16.9]} 34. Be7
{[%clk 0:00:11.8]} 34... Rd1 {[%clk 0:00:07.7]} 35. Qxf6+ {[%clk 0:00:12]} 35...
Kh7 {[%clk 0:00:08.3]} 36. Qf5+ {[%clk 0:00:12.4]} 36... Kg8 {[%clk 0:00:09.3]}
37. Qxg5+ {[%clk 0:00:12.8]} 37... Kh7 {[%clk 0:00:10.3]} 38. Qh4+ {[%clk
0:00:09.2]} 38... Kg7 {[%clk 0:00:11.2]} 39. Qg4+ {[%clk 0:00:10.6]} 39... Kf7
{[%clk 0:00:12.2]} 40. Rxd1 {[%clk 0:00:12]} 40... Rxd1+ {[%clk 0:00:12.9]} 41.
Qxd1 {[%clk 0:00:13.9]} 41... Kxe7 {[%clk 0:00:14.5]} 42. Qc2 {[%clk 0:00:15.3]}
42... Bd6 {[%clk 0:00:14.4]} 43. Qe4+ {[%clk 0:00:16.4]} 43... Kd7 {[%clk
0:00:15.4]} 44. a4 {[%clk 0:00:18]} 44... h2 {[%clk 0:00:16.1]} 45. a5 {[%clk
0:00:19.3]} 45... Kc7 {[%clk 0:00:18]} 46. a6 {[%clk 0:00:20.7]} 46... Kb6
{[%clk 0:00:19.1]} 47. Qb7+ {[%clk 0:00:22.2]} 47... Kc5 {[%clk 0:00:17.5]} 48.
a7 {[%clk 0:00:24.1]} 48... Kd4 {[%clk 0:00:18.7]} 49. a8=Q {[%clk 0:00:25.5]}
49... Kd3 {[%clk 0:00:20]} 50. Qd5+ {[%clk 0:00:27.4]} 50... Ke2 {[%clk
0:00:20.9]} 51. Qxd6 {[%clk 0:00:28.9]} 51... Kf1 {[%clk 0:00:21.4]} 52. Qa1+
{[%clk 0:00:28.5]} 52... Kxf2 {[%clk 0:00:22.3]} 53. Qxh2+ {[%clk 0:00:30.1]}
53... Kf3 {[%clk 0:00:24.2]} 54. Qf1+ {[%clk 0:00:31.2]} 54... Kg4 {[%clk
0:00:26.1]} 55. Qhh3+ {[%clk 0:00:32.1]} 55... Kg5 {[%clk 0:00:23.1]} 56. Qff5#
{[%clk 0:00:33.2]} 1

[Event "Torneo Nuevo Centro. Jornada 10"]
[Site "Chess.com"]
[Date "2020.08.21"]
[Round "6"]
[White "Aguado, Pablo Luis"]
[Black "Escalona Moncholi, Felix"]
[Result "0-1"]
[WhiteElo "1949"]
[BlackElo "2089"]
[TimeControl "180+2"]
[EndTime "11:39:07 PDT"]
[Termination "Victoria de SchachSpielerESP por abandono"]

1. d4 {[%clk 0:03:01.9]} 1... d5 {[%clk 0:03:00.6]} 2. c4 {[%clk 0:03:02.3]}
2... dxc4 {[%clk 0:03:00.7]} 3. e3 {[%clk 0:03:02.5]} 3... Nf6 {[%clk
0:03:01.1]} 4. Bxc4 {[%clk 0:03:02.4]} 4... c5 {[%clk 0:03:02.4]} 5. Nf3 {[%clk
0:03:00.8]} 5... e6 {[%clk 0:03:03.6]} 6. Nc3 {[%clk 0:03:01.3]} 6... a6 {[%clk
0:03:04.5]} 7. a4 {[%clk 0:03:01.4]} 7... Nc6 {[%clk 0:03:05.2]} 8. O-O {[%clk
0:03:02.2]} 8... Qc7 {[%clk 0:03:05.8]} 9. Qe2 {[%clk 0:03:00.4]} 9... Bd6
{[%clk 0:03:06.8]} 10. Rd1 {[%clk 0:02:55]} 10... b6 {[%clk 0:02:59.8]} 11. b3
{[%clk 0:02:46.7]} 11... O-O {[%clk 0:02:59.7]} 12. Bb2 {[%clk 0:02:47.2]} 12...
Bb7 {[%clk 0:02:58.7]} 13. d5 {[%clk 0:02:42.8]} 13... exd5 {[%clk 0:02:57.2]}
14. Nxd5 {[%clk 0:02:44.7]} 14... Nxd5 {[%clk 0:02:57.1]} 15. Bxd5 {[%clk
0:02:44.6]} 15... Rad8 {[%clk 0:02:52.6]} 16. Qc4 {[%clk 0:02:38.8]} 16... Na5
{[%clk 0:02:47.6]} 17. Qg4 {[%clk 0:02:36.8]} 17... g6 {[%clk 0:02:22.8]} 18.
Bxb7 {[%clk 0:02:36.3]} 18... Nxb7 {[%clk 0:02:14.5]} 19. Qh4 {[%clk 0:02:35.2]}
19... Be7 {[%clk 0:02:04.8]} 20. Qh6 {[%clk 0:02:34.5]} 20... f6 {[%clk
0:02:04.7]} 21. Ng5 {[%clk 0:02:22.3]} 21... Bd6 {[%clk 0:01:17.5]} 22. Ne6
{[%clk 0:02:21.4]} 22... Qf7 {[%clk 0:01:12.8]} 23. Nxf8 {[%clk 0:01:49.7]}
23... Bxf8 {[%clk 0:01:14.7]} 24. Qf4 {[%clk 0:01:46.9]} 24... Be7 {[%clk
0:00:35.9]} 25. Rxd8+ {[%clk 0:01:35.2]} 25... Bxd8 {[%clk 0:00:37.8]} 26. Qb8
{[%clk 0:01:27.5]} 26... Kg7 {[%clk 0:00:29.6]} 27. Rd1 {[%clk 0:01:17.9]} 27...
Bc7 {[%clk 0:00:30.6]} 28. Qc8 {[%clk 0:01:12.6]} 28... Nd6 {[%clk 0:00:26.9]}
29. Qxa6 {[%clk 0:00:40.1]} 29... Qxb3 {[%clk 0:00:27.7]} 30. Qe2 {[%clk
0:00:35.6]} 30... c4 {[%clk 0:00:24.7]} 31. Rc1 {[%clk 0:00:28.2]} 31... Qxa4
{[%clk 0:00:25.3]} 32. Qf3 {[%clk 0:00:20.6]} 32... Ne8 {[%clk 0:00:16.3]} 33.
Qd5 {[%clk 0:00:20.1]} 33... Qb3 {[%clk 0:00:11.6]} 34. Bd4 {[%clk 0:00:12.5]}
34... Nd6 {[%clk 0:00:04.8]} 35. Qe6 {[%clk 0:00:09.5]} 35... Nf5 {[%clk
0:00:02.1]} 36. Qxf6+ {[%clk 0:00:09.7]} 36... Kh6 {[%clk 0:00:03.3]} 37. g4
{[%clk 0:00:04.7]} 37... Qa3 {[%clk 0:00:04.3]} 38. Rf1 {[%clk 0:00:04.6]} 38...
Qd6 {[%clk 0:00:03.6]} 39. Qxd6 {[%clk 0:00:03.9]} 39... Nxd6 {[%clk 0:00:05.5]}
40. Rb1 {[%clk 0:00:04.3]} 40... b5 {[%clk 0:00:07.1]} 41. Bc5 {[%clk
0:00:05.2]} 41... c3 {[%clk 0:00:07.3]} 42. Bxd6 {[%clk 0:00:05.9]} 42... Bxd6
{[%clk 0:00:08.2]} 43. Kf1 {[%clk 0:00:05.6]} 43... b4 {[%clk 0:00:09.3]} 44.
Ke2 {[%clk 0:00:06.4]} 44... c2 {[%clk 0:00:06.8]} 45. Rc1 {[%clk 0:00:07.3]}
45... b3 {[%clk 0:00:07.9]} 46. Kd2 {[%clk 0:00:08.5]} 46... b2 {[%clk
0:00:09.1]} 47. Kxc2 {[%clk 0:00:08.4]} 47... bxc1=Q+ {[%clk 0:00:10.3]} 48.
Kxc1 {[%clk 0:00:10.3]} 48... Bxh2 {[%clk 0:00:11.5]} 49. f3 {[%clk 0:00:10.4]}
49... Kg5 {[%clk 0:00:12.7]} 50. Kd2 {[%clk 0:00:11.9]} 50... Bg1 {[%clk
0:00:13.2]} 51. Ke2 {[%clk 0:00:12.9]} 51... Bh2 {[%clk 0:00:13.6]} 52. Kf2
{[%clk 0:00:13.7]} 52... Bc7 {[%clk 0:00:14.2]} 53. Kg2 {[%clk 0:00:14.8]} 53...
Kf6 {[%clk 0:00:14.6]} 54. Kh3 {[%clk 0:00:15.2]} 54... Bd8 {[%clk 0:00:14.3]}
55. Kg3 {[%clk 0:00:15.6]} 55... Ke5 {[%clk 0:00:15.4]} 56. e4 {[%clk
0:00:11.2]} 56... Bg5 {[%clk 0:00:15.5]} 57. Kg2 {[%clk 0:00:09.3]} 57... Kf4
{[%clk 0:00:17]} 58. Kf2 {[%clk 0:00:10.6]} 58... Bf6 {[%clk 0:00:17.8]} 59. Kg2
{[%clk 0:00:10.8]} 59... Be5 {[%clk 0:00:18.6]} 60. Kf2 {[%clk 0:00:11.6]} 60...
Bd4+ {[%clk 0:00:20]} 61. Kg2 {[%clk 0:00:12.5]} 61... g5 {[%clk 0:00:20.9]} 0

[Event "Torneo Nuevo Centro. Jornada 10"]
[Site "Chess.com"]
[Date "2020.08.21"]
[Round "6"]
[White "Macias Pino, Diego"]
[Black "Kovacevic, Slobodan"]
[Result "1-0"]
[WhiteElo "2265"]
[BlackElo "2303"]
[TimeControl "180+2"]
[EndTime "11:39:10 PDT"]
[Termination "Victoria de adivinaquiensoy por tiempo"]

1. e4 {[%clk 0:03:01.9]} 1... c5 {[%clk 0:02:59.3]} 2. Nf3 {[%clk 0:03:03.3]}
2... e6 {[%clk 0:02:58.8]} 3. d4 {[%clk 0:03:04.8]} 3... cxd4 {[%clk 0:02:58.2]}
4. Nxd4 {[%clk 0:03:06.7]} 4... a6 {[%clk 0:02:57.9]} 5. c4 {[%clk 0:03:07.5]}
5... Nf6 {[%clk 0:02:56.8]} 6. Nc3 {[%clk 0:03:08.5]} 6... Qc7 {[%clk
0:02:56.2]} 7. Be2 {[%clk 0:03:01.4]} 7... b6 {[%clk 0:02:55.8]} 8. f4 {[%clk
0:02:58.7]} 8... d6 {[%clk 0:02:54.8]} 9. O-O {[%clk 0:02:56]} 9... Be7 {[%clk
0:02:51.7]} 10. Be3 {[%clk 0:02:55.8]} 10... O-O {[%clk 0:02:51]} 11. g4 {[%clk
0:02:54.6]} 11... Bb7 {[%clk 0:02:47.7]} 12. Qd3 {[%clk 0:02:52.3]} 12... Nbd7
{[%clk 0:02:42.7]} 13. g5 {[%clk 0:02:34.3]} 13... Nc5 {[%clk 0:02:40.6]} 14.
gxf6 {[%clk 0:02:35.2]} 14... Nxd3 {[%clk 0:02:39.4]} 15. fxe7 {[%clk
0:02:37.1]} 15... Qxe7 {[%clk 0:02:37.5]} 16. Bxd3 {[%clk 0:02:38.5]} 16... Rac8
{[%clk 0:02:30.4]} 17. Rf3 {[%clk 0:02:37.4]} 17... f5 {[%clk 0:02:27.8]} 18.
Rh3 {[%clk 0:02:22.9]} 18... g6 {[%clk 0:02:21.9]} 19. Re1 {[%clk 0:02:20.5]}
19... fxe4 {[%clk 0:02:14.2]} 20. Nxe4 {[%clk 0:02:18]} 20... Bxe4 {[%clk
0:01:56.6]} 21. Bxe4 {[%clk 0:02:19.9]} 21... Rxc4 {[%clk 0:01:55.2]} 22. b3
{[%clk 0:02:02.7]} 22... Rc3 {[%clk 0:01:50.5]} 23. Rg3 {[%clk 0:01:41.1]} 23...
b5 {[%clk 0:01:34.5]} 24. Bf2 {[%clk 0:01:38.7]} 24... Rxg3+ {[%clk 0:01:32.8]}
25. hxg3 {[%clk 0:01:40.6]} 25... Qf6 {[%clk 0:01:30.7]} 26. Re2 {[%clk
0:00:58.8]} 26... e5 {[%clk 0:01:28]} 27. fxe5 {[%clk 0:01:00.7]} 27... dxe5
{[%clk 0:01:27.4]} 28. Nf3 {[%clk 0:01:01.2]} 28... Rd8 {[%clk 0:01:21.3]} 29.
Kg2 {[%clk 0:01:01.1]} 29... Kg7 {[%clk 0:01:18.9]} 30. Be1 {[%clk 0:01:00.6]}
30... Rd4 {[%clk 0:01:05.4]} 31. Nxd4 {[%clk 0:00:47]} 31... exd4 {[%clk
0:01:04.7]} 32. Bf2 {[%clk 0:00:46.5]} 32... Qe5 {[%clk 0:00:56.4]} 33. Bd3
{[%clk 0:00:46.6]} 33... Qc5 {[%clk 0:00:52.4]} 34. Re4 {[%clk 0:00:34]} 34...
Kf7 {[%clk 0:00:50.5]} 35. Rxd4 {[%clk 0:00:34.1]} 35... Qc3 {[%clk 0:00:46]}
36. Be4 {[%clk 0:00:25.1]} 36... Qb2 {[%clk 0:00:39.2]} 37. a4 {[%clk 0:00:26]}
37... bxa4 {[%clk 0:00:33.3]} 38. bxa4 {[%clk 0:00:26.6]} 38... a5 {[%clk
0:00:30.7]} 39. Bc6 {[%clk 0:00:24]} 39... Ke6 {[%clk 0:00:25.8]} 40. Bf3 {[%clk
0:00:23.8]} 40... h5 {[%clk 0:00:24.3]} 41. Kg1 {[%clk 0:00:23.5]} 41... Ke5
{[%clk 0:00:21.3]} 42. Rd5+ {[%clk 0:00:23.2]} 42... Ke6 {[%clk 0:00:20.3]} 43.
Rxa5 {[%clk 0:00:23.3]} 43... Qc3 {[%clk 0:00:16.4]} 44. Ra6+ {[%clk 0:00:24.4]}
44... Ke5 {[%clk 0:00:15.9]} 45. Kg2 {[%clk 0:00:26.3]} 45... Qc4 {[%clk
0:00:12.3]} 46. Rxg6 {[%clk 0:00:24.9]} 46... Qxa4 {[%clk 0:00:11.9]} 47. Rg5+
{[%clk 0:00:23.4]} 47... Kf6 {[%clk 0:00:11.1]} 48. Rxh5 {[%clk 0:00:25.3]}
48... Kg6 {[%clk 0:00:11.2]} 49. Rc5 {[%clk 0:00:24.8]} 49... Kf6 {[%clk
0:00:11.1]} 50. g4 {[%clk 0:00:25.1]} 50... Kg6 {[%clk 0:00:10.5]} 51. Kg3
{[%clk 0:00:22.9]} 51... Qb4 {[%clk 0:00:09]} 52. Rc6+ {[%clk 0:00:23]} 52...
Kg7 {[%clk 0:00:07]} 53. g5 {[%clk 0:00:18.7]} 53... Qd2 {[%clk 0:00:04.9]} 54.
Rc5 {[%clk 0:00:13.1]} 54... Qd6+ {[%clk 0:00:03.7]} 55. Kg2 {[%clk 0:00:11.9]}
55... Qd2 {[%clk 0:00:03.5]} 56. Be4 {[%clk 0:00:08.2]} 56... Qd6 {[%clk
0:00:02.6]} 57. Ra5 {[%clk 0:00:07.2]} 1

[Event "Torneo Nuevo Centro. Jornada 10"]
[Site "Chess.com"]
[Date "2020.08.21"]
[Round "6"]
[White "Chofre Murcia, Adrián"]
[Black "Marques Montolio, Luis"]
[Result "0-1"]
[WhiteElo "1641"]
[BlackElo "1449"]
[TimeControl "180+2"]
[EndTime "11:39:11 PDT"]
[Termination "Victoria de ateneomaritimo por tiempo"]

1. e4 {[%clk 0:03:01.9]} 1... d5 {[%clk 0:02:59.1]} 2. exd5 {[%clk 0:03:01.7]}
2... Qxd5 {[%clk 0:03:01]} 3. Nc3 {[%clk 0:03:02.2]} 3... Qa5 {[%clk 0:03:02.3]}
4. Nf3 {[%clk 0:03:02.8]} 4... c6 {[%clk 0:03:03.5]} 5. d4 {[%clk 0:03:01.8]}
5... Bf5 {[%clk 0:03:04.6]} 6. Bd2 {[%clk 0:03:02.1]} 6... e6 {[%clk 0:03:05.5]}
7. Be2 {[%clk 0:02:59.3]} 7... Qc7 {[%clk 0:03:05.6]} 8. O-O {[%clk 0:02:59.2]}
8... Nf6 {[%clk 0:03:05.7]} 9. g3 {[%clk 0:02:52.2]} 9... Bd6 {[%clk 0:03:05.2]}
10. Nh4 {[%clk 0:02:45.3]} 10... Bg6 {[%clk 0:03:05.6]} 11. Nxg6 {[%clk
0:02:45.9]} 11... hxg6 {[%clk 0:03:07.5]} 12. Bf3 {[%clk 0:02:42.4]} 12... Nbd7
{[%clk 0:03:07.5]} 13. d5 {[%clk 0:02:38]} 13... cxd5 {[%clk 0:03:04.6]} 14. Nb5
{[%clk 0:02:38.5]} 14... Qc6 {[%clk 0:02:57.2]} 15. Nxd6+ {[%clk 0:02:39]} 15...
Qxd6 {[%clk 0:02:58.2]} 16. a3 {[%clk 0:02:34.2]} 16... a5 {[%clk 0:02:56.9]}
17. Bf4 {[%clk 0:02:32.6]} 17... Qc6 {[%clk 0:02:57]} 18. Re1 {[%clk 0:02:30.3]}
18... O-O {[%clk 0:02:57.2]} 19. c3 {[%clk 0:02:28.1]} 19... b6 {[%clk
0:02:55.1]} 20. Qd4 {[%clk 0:02:27.4]} 20... Rac8 {[%clk 0:02:39.3]} 21. Rac1
{[%clk 0:02:20.9]} 21... Rfe8 {[%clk 0:02:32.8]} 22. Be5 {[%clk 0:02:15]} 22...
Nxe5 {[%clk 0:02:26.4]} 23. Qxe5 {[%clk 0:02:15.7]} 23... Qc7 {[%clk 0:02:27]}
24. Qd4 {[%clk 0:02:10.2]} 24... Qc5 {[%clk 0:02:25.4]} 25. Qd2 {[%clk
0:02:01.7]} 25... b5 {[%clk 0:02:17.2]} 26. b4 {[%clk 0:02:02.1]} 26... axb4
{[%clk 0:02:16]} 27. cxb4 {[%clk 0:02:01.9]} 27... Qb6 {[%clk 0:02:14.1]} 28.
Rxc8 {[%clk 0:02:01.3]} 28... Rxc8 {[%clk 0:02:13.9]} 29. Rc1 {[%clk 0:02:02]}
29... Rxc1+ {[%clk 0:02:11.6]} 30. Qxc1 {[%clk 0:02:02.5]} 30... Qd4 {[%clk
0:02:09.5]} 31. Qe3 {[%clk 0:01:54.1]} 31... Qa1+ {[%clk 0:02:04.4]} 32. Kg2
{[%clk 0:01:52.7]} 32... Kh7 {[%clk 0:01:54.7]} 33. Qd3 {[%clk 0:01:39]} 33...
Qb2 {[%clk 0:01:39.3]} 34. h3 {[%clk 0:01:29.5]} 34... Qa2 {[%clk 0:01:30.5]}
35. Qxb5 {[%clk 0:01:15.1]} 35... Qxa3 {[%clk 0:01:30]} 36. Qa5 {[%clk
0:01:16.2]} 36... Qc3 {[%clk 0:01:25.6]} 37. Qc5 {[%clk 0:01:11.6]} 37... d4
{[%clk 0:01:14.6]} 38. Qxc3 {[%clk 0:01:02]} 38... dxc3 {[%clk 0:01:16.5]} 39.
Bd1 {[%clk 0:01:03]} 39... Nd5 {[%clk 0:01:09.8]} 40. b5 {[%clk 0:00:58.8]}
40... f5 {[%clk 0:01:03.7]} 41. Kf3 {[%clk 0:00:58.1]} 41... g5 {[%clk
0:00:59.2]} 42. Ke2 {[%clk 0:00:42.1]} 42... Kg6 {[%clk 0:00:58.3]} 43. Bb3
{[%clk 0:00:42]} 43... Nc7 {[%clk 0:00:34.1]} 44. b6 {[%clk 0:00:40.3]} 44...
Na6 {[%clk 0:00:34.7]} 45. Bc4 {[%clk 0:00:30.9]} 45... Nb8 {[%clk 0:00:29.6]}
46. Kd3 {[%clk 0:00:27.2]} 46... Kf6 {[%clk 0:00:28.3]} 47. Kxc3 {[%clk
0:00:28.1]} 47... e5 {[%clk 0:00:27.2]} 48. f3 {[%clk 0:00:20.7]} 48... f4
{[%clk 0:00:25.5]} 49. gxf4 {[%clk 0:00:18.4]} 49... gxf4 {[%clk 0:00:21.8]} 50.
h4 {[%clk 0:00:18.4]} 50... Ke7 {[%clk 0:00:21.8]} 51. Kd3 {[%clk 0:00:17.6]}
51... Kd6 {[%clk 0:00:22.2]} 52. Ke4 {[%clk 0:00:18.2]} 52... Kc6 {[%clk
0:00:17.6]} 53. Kxe5 {[%clk 0:00:10.3]} 53... Kxb6 {[%clk 0:00:18.6]} 54. Kxf4
{[%clk 0:00:11.1]} 54... Kc5 {[%clk 0:00:17.8]} 55. Be6 {[%clk 0:00:10.2]} 55...
Kd6 {[%clk 0:00:18.7]} 56. Bg4 {[%clk 0:00:07.6]} 56... Ke7 {[%clk 0:00:18.9]}
57. Kg5 {[%clk 0:00:08.3]} 57... Nc6 {[%clk 0:00:14.7]} 58. Kg6 {[%clk
0:00:04.3]} 58... Kf8 {[%clk 0:00:15.5]} 0

[Event "Torneo Nuevo Centro. Jornada 10"]
[Site "Chess.com"]
[Date "2020.08.21"]
[Round "6"]
[White "Salvador Buiza, Victor"]
[Black "Bercaru, Vlad Ionut"]
[Result "1-0"]
[WhiteElo "1891"]
[BlackElo "1753"]
[TimeControl "180+2"]
[EndTime "11:39:20 PDT"]
[Termination "Victoria de TERROROSCURO666 por abandono"]

1. e4 {[%clk 0:03:01.9]} 1... c5 {[%clk 0:03:00.3]} 2. Nf3 {[%clk 0:03:01.7]}
2... Nc6 {[%clk 0:03:00.8]} 3. Bb5 {[%clk 0:03:01.4]} 3... Nf6 {[%clk 0:03:00]}
4. d3 {[%clk 0:02:58]} 4... a6 {[%clk 0:02:51.9]} 5. Bxc6 {[%clk 0:02:58.6]}
5... dxc6 {[%clk 0:02:53.8]} 6. O-O {[%clk 0:02:57.7]} 6... Bg4 {[%clk
0:02:54.4]} 7. h3 {[%clk 0:02:58.5]} 7... Bxf3 {[%clk 0:02:55]} 8. Qxf3 {[%clk
0:02:58.5]} 8... e5 {[%clk 0:02:55.9]} 9. Bg5 {[%clk 0:02:58.6]} 9... Be7 {[%clk
0:02:54.9]} 10. Qe3 {[%clk 0:02:58.7]} 10... Qd4 {[%clk 0:02:49.1]} 11. Nc3
{[%clk 0:02:52.8]} 11... h6 {[%clk 0:02:41.4]} 12. Bxf6 {[%clk 0:02:46.3]} 12...
Bxf6 {[%clk 0:02:43.3]} 13. Kh2 {[%clk 0:02:41]} 13... b5 {[%clk 0:02:14.5]} 14.
Qd2 {[%clk 0:02:28.6]} 14... Bg5 {[%clk 0:02:10.7]} 15. Qe2 {[%clk 0:02:26.8]}
15... O-O {[%clk 0:01:49.4]} 16. g3 {[%clk 0:02:26.4]} 16... Qd6 {[%clk
0:01:39.2]} 17. h4 {[%clk 0:02:05.5]} 17... Be7 {[%clk 0:01:35.9]} 18. f4 {[%clk
0:02:05.9]} 18... exf4 {[%clk 0:01:35.7]} 19. Rxf4 {[%clk 0:02:04.9]} 19... Qe5
{[%clk 0:01:24.9]} 20. Rf5 {[%clk 0:02:00]} 20... Qc7 {[%clk 0:01:13.2]} 21. Qg4
{[%clk 0:01:55.9]} 21... Bd6 {[%clk 0:00:58.5]} 22. Re1 {[%clk 0:01:32.3]} 22...
Be5 {[%clk 0:00:53.8]} 23. Ref1 {[%clk 0:01:16.2]} 23... f6 {[%clk 0:00:37.9]}
24. Ne2 {[%clk 0:01:07.7]} 24... Rf7 {[%clk 0:00:32.8]} 25. Nf4 {[%clk
0:01:01.2]} 25... Bxf4 {[%clk 0:00:29.1]} 26. R1xf4 {[%clk 0:01:01.3]} 26... Qd6
{[%clk 0:00:21.9]} 27. Qh5 {[%clk 0:00:51.3]} 27... Kh8 {[%clk 0:00:19.2]} 28.
Qxf7 {[%clk 0:00:37]} 28... Rf8 {[%clk 0:00:16.4]} 29. Qh5 {[%clk 0:00:33.7]}
29... Qe7 {[%clk 0:00:13.4]} 30. Rxc5 {[%clk 0:00:33.5]} 30... Rf7 {[%clk
0:00:06.5]} 31. Rxc6 {[%clk 0:00:32.3]} 31... Qd7 {[%clk 0:00:06]} 32. Rc8+
{[%clk 0:00:32.2]} 32... Qxc8 {[%clk 0:00:04.9]} 33. Qxf7 {[%clk 0:00:32.9]}
33... Kh7 {[%clk 0:00:06.3]} 34. Rf2 {[%clk 0:00:30.5]} 34... Qc5 {[%clk
0:00:06.5]} 35. Kg2 {[%clk 0:00:29.1]} 35... Qe3 {[%clk 0:00:07]} 36. Qd5 {[%clk
0:00:26.9]} 36... Qb6 {[%clk 0:00:06.1]} 37. Qf5+ {[%clk 0:00:27.4]} 37... Kg8
{[%clk 0:00:06.5]} 38. e5 {[%clk 0:00:28.1]} 38... fxe5 {[%clk 0:00:06.2]} 39.
Qxe5 {[%clk 0:00:27.1]} 39... Qb7+ {[%clk 0:00:06.3]} 40. Kh2 {[%clk 0:00:25.2]}
40... Qb6 {[%clk 0:00:05.9]} 41. Rf1 {[%clk 0:00:21.5]} 41... Kh7 {[%clk
0:00:04.6]} 42. Qf5+ {[%clk 0:00:20.5]} 42... Kh8 {[%clk 0:00:05.4]} 43. Qf8+
{[%clk 0:00:20.4]} 43... Kh7 {[%clk 0:00:06.1]} 44. c3 {[%clk 0:00:21.7]} 44...
Qc6 {[%clk 0:00:04.6]} 45. d4 {[%clk 0:00:21.1]} 45... Qc4 {[%clk 0:00:03.4]}
46. Qf5+ {[%clk 0:00:21]} 46... Kh8 {[%clk 0:00:03.5]} 47. a3 {[%clk 0:00:20.8]}
47... Qe2+ {[%clk 0:00:03.4]} 48. Qf2 {[%clk 0:00:21]} 48... Qc4 {[%clk
0:00:04]} 49. Qg2 {[%clk 0:00:20.5]} 49... Kh7 {[%clk 0:00:04.1]} 50. d5 {[%clk
0:00:19.3]} 50... Qc5 {[%clk 0:00:03.8]} 51. Qf3 {[%clk 0:00:18.7]} 51... Kg8
{[%clk 0:00:03.9]} 52. Qf7+ {[%clk 0:00:18.2]} 52... Kh7 {[%clk 0:00:05.2]} 53.
Qe6 {[%clk 0:00:17]} 53... Qc4 {[%clk 0:00:04.8]} 54. Qf5+ {[%clk 0:00:17.2]}
54... Kh8 {[%clk 0:00:05.4]} 55. d6 {[%clk 0:00:18.2]} 55... Qe2+ {[%clk
0:00:04.9]} 56. Qf2 {[%clk 0:00:16.6]} 56... Qd3 {[%clk 0:00:05]} 57. Qf8+
{[%clk 0:00:15.9]} 57... Kh7 {[%clk 0:00:06.1]} 58. Qf5+ {[%clk 0:00:17]} 58...
Qxf5 {[%clk 0:00:08]} 59. Rxf5 {[%clk 0:00:18.2]} 59... Kg6 {[%clk 0:00:09.6]}
60. Rd5 {[%clk 0:00:19.6]} 60... Kf6 {[%clk 0:00:10.5]} 61. d7 {[%clk
0:00:20.8]} 61... Ke7 {[%clk 0:00:12.4]} 62. d8=Q+ {[%clk 0:00:21.8]} 62... Ke6
{[%clk 0:00:14.3]} 1